bitfinex-derivatives/quotes_BTCF0:USTF0_20210102
["timestamp","ask_amount","ask_price","bid_price","bid_amount"]
[1609621521734,0.16885,31689.0,31687.0,0.5752]
[1609621522136,0.16885,31689.0,31686.0,0.00038716]
[1609621522336,0.16885,31689.0,31685.0,0.18043158]
[1609621522337,0.16885,31689.0,31688.0,0.00038713]
[1609621522537,0.16885,31689.0,31686.0,0.00038713]
[1609621523139,0.18043158,31687.0,31669.0,0.03964046]
[1609621523740,0.16885,31689.0,31669.0,0.03964046]
[1609621524448,0.16885,31689.0,31664.0,0.03963777]
[1609621524641,0.16885,31689.0,31670.0,0.03924998]
[1609621524941,0.16885,31689.0,31663.0,0.03963649]
[1609621525141,0.18043158,31683.0,31670.0,0.18043158]
[1609621525343,0.18043158,31683.0,31671.0,0.03963732]
[1609621525741,0.18043158,31683.0,31663.0,0.03963387]
[1609621525945,1.16885,31689.0,31673.0,1.0]
[1609621526341,1.16885,31689.0,31674.0,0.03963305]
[1609621527344,0.16885,31689.0,31674.0,0.03963305]
[1609621527744,0.1587,31692.0,31678.0,1.0]
[1609621527945,0.1587,31692.0,31679.0,0.7191]
[1609621528145,0.1587,31692.0,31679.0,0.75870898]
[1609621528544,0.0944,31797.0,31680.0,0.03960816]
[1609621528746,1.07138299,31798.0,31680.0,0.03960816]
[1609621529146,0.18043158,31709.0,31697.0,0.18043158]
[1609621529545,0.18043158,31709.0,31697.0,0.00038672]
[1609621530145,0.18043158,31709.0,31695.0,0.00038675]
[1609621530947,0.13617,31710.0,31695.0,0.00038675]
[1609621531149,0.13617,31710.0,31697.0,0.18043158]
[1609621531549,0.13617,31710.0,31697.0,5.40483158]
[1609621531749,0.13617,31710.0,31697.0,5.40521836]
[1609621531949,0.13617,31710.0,31697.0,5.52286798]
[1609621532550,0.13617,31710.0,31698.0,0.11801453]
[1609621533152,0.13617,31710.0,31709.0,0.18043158]
[1609621533350,0.18043158,31730.0,31709.0,0.18043158]
[1609621533549,0.18043158,31730.0,31709.0,0.22001295]
[1609621533850,0.18043158,31730.0,31710.0,0.03958188]
[1609621534051,0.07138299,31798.0,31710.0,0.03958188]
[1609621534452,0.0943,31788.0,31710.0,0.03958188]
[1609621534654,0.00039207,31747.0,31710.0,0.03958188]
[1609621534853,0.11231207,31747.0,31702.0,0.11799797]
[1609621535253,0.18043158,31721.0,31702.0,0.11799797]
[1609621535455,0.12741,31721.0,31702.0,0.11799797]
[1609621536055,0.12741,31721.0,31697.0,0.03957513]
[1609621536255,0.12741,31721.0,31690.0,0.0783876]
[1609621536256,0.12741,31721.0,31703.0,0.03957078]
[1609621536457,1.0,31720.0,31704.0,1.0]
[1609621536857,1.0,31720.0,31705.0,0.03956264]
[1609621537258,0.18043158,31717.0,31714.0,0.18043158]
[1609621537660,0.18043158,31717.0,31715.0,0.03956615]
[1609621538061,1.0,31720.0,31715.0,0.03956615]
[1609621538461,0.12741,31721.0,31715.0,0.03956615]
[1609621539462,0.12741,31721.0,31720.0,0.18043158]
[1609621539964,0.18043158,31732.0,31720.0,0.2199955]
[1609621540164,0.11192,31747.0,31720.0,0.2199955]
[1609621540363,0.11192,31747.0,31721.0,0.03957092]
[1609621540564,0.00039197,31746.0,31721.0,0.03957092]
[1609621540764,0.15020197,31746.0,31721.0,0.03957092]
[1609621541164,0.000392,31745.0,31701.0,0.03957464]
[1609621541364,0.000392,31745.0,31722.0,0.03958973]
[1609621541565,0.000392,31745.0,31710.0,0.18043158]
[1609621541865,0.000392,31745.0,31711.0,0.03959488]
[1609621543367,0.18043158,31719.0,31718.0,0.18043158]
[1609621543565,0.29814158,31719.0,31711.0,0.03959488]
[1609621543764,0.29814158,31719.0,31700.0,0.1541]
[1609621543765,0.29814158,31719.0,31718.0,0.03958211]
[1609621544165,0.29814158,31719.0,31712.0,0.03958086]
[1609621544366,0.29814158,31719.0,31718.0,0.03958583]
[1609621544566,0.29814158,31719.0,31713.0,0.03957736]
[1609621544966,0.29814158,31719.0,31718.0,0.03958947]
[1609621545165,0.29814158,31719.0,31714.0,0.03958776]
[1609621545367,0.18043158,31715.0,31693.0,0.1405]
[1609621545869,0.18043158,31715.0,31694.0,0.00037424]
[1609621546068,0.00656485,31719.0,31694.0,0.0395804]
[1609621546268,0.00656485,31719.0,31691.0,0.11801369]
[1609621546468,0.00656485,31719.0,31695.0,0.03958188]
[1609621546669,0.00656485,31719.0,31695.0,0.03920761]
[1609621546870,0.00656485,31719.0,31692.0,0.03958561]
[1609621547071,0.00656485,31719.0,31696.0,0.03958494]
[1609621547273,0.00656485,31719.0,31693.0,0.03958314]
[1609621547670,0.00656485,31719.0,31697.0,0.0395857]
[1609621547869,0.00656485,31719.0,31697.0,0.1202]
[1609621548069,0.00656485,31719.0,31698.0,0.03963371]
[1609621548677,0.14981,31746.0,31698.0,0.03963371]
[1609621548874,0.0932,31749.0,31698.0,0.03963371]
[1609621549171,0.00039216,31745.0,31698.0,0.03963371]
[1609621549372,0.18043158,31732.0,31698.0,0.03963371]
[1609621549572,0.35145158,31732.0,31698.0,0.03963371]
[1609621550473,1.0,31726.0,31710.0,1.0]
[1609621550773,1.0,31726.0,31711.0,0.03961725]
[1609621551375,1.0,31726.0,31725.0,0.18043158]
[1609621551879,1.0,31726.0,31725.0,0.22004761]
[1609621552580,0.17102,31732.0,31725.0,1.22004761]
[1609621552776,0.15058,31745.0,31725.0,1.33317761]
[1609621552977,1.07138299,31748.0,31726.0,0.03959408]
[1609621553393,1.07138299,31748.0,31747.0,0.18043158]
[1609621553789,1.07138299,31748.0,31747.0,0.22001488]
[1609621554579,0.0932,31805.0,31747.0,0.22001488]
[1609621554978,0.22585299,31798.0,31747.0,0.22001488]
[1609621555183,0.22585299,31798.0,31748.0,0.03956988]
[1609621555377,0.22585299,31798.0,31761.0,0.18043158]
[1609621555580,0.22585299,31798.0,31748.0,0.03956988]
[1609621555778,0.22585299,31798.0,31754.0,0.16681]
[1609621556179,0.22585299,31798.0,31755.0,0.03955449]
[1609621556979,0.22585299,31798.0,31745.0,0.03958332]
[1609621557279,0.22585299,31798.0,31756.0,0.0395514]
[1609621557479,0.22585299,31798.0,31767.0,0.18043158]
[1609621559484,0.22585299,31798.0,31793.0,0.18043158]
[1609621561388,0.18043158,31796.0,31794.0,0.00045322]
[1609621561587,0.18043158,31796.0,31793.0,0.18043158]
[1609621561787,0.18043158,31796.0,31776.0,4.40931]
[1609621562189,0.18043158,31796.0,31777.0,0.00045323]
[1609621563390,0.18043158,31778.0,31777.0,0.00045323]
[1609621563994,0.18043158,31778.0,31768.0,0.00045351]
[1609621564492,1.0,31769.0,31745.0,0.00045362]
[1609621564693,1.17235,31769.0,31745.0,0.00045362]
[1609621564893,1.17235,31769.0,31742.0,0.0004536]
[1609621565494,0.18043158,31754.0,31742.0,0.0004536]
[1609621565693,0.10592,31754.0,31742.0,0.0004536]
[1609621566496,0.10592,31754.0,31753.0,6.0]
[1609621566694,0.19962,31754.0,31753.0,6.0]
[1609621566897,0.17206,31761.0,31753.0,6.00045353]
[1609621567295,0.17206,31761.0,31754.0,4.06305353]
[1609621567495,0.17235,31769.0,31754.0,4.06305353]
[1609621567496,0.14883262,31769.0,31760.0,0.18043158]
[1609621567696,0.16369,31782.0,31760.0,0.34305158]
[1609621567896,0.18043158,31797.0,31761.0,0.03962078]
[1609621569398,0.18043158,31793.0,31792.0,0.18043158]
[1609621569801,0.11846,31820.0,31792.0,0.18043158]
[1609621569999,0.17142,31827.0,31792.0,0.33643002]
[1609621570198,0.17142,31827.0,31793.0,0.03958282]
[1609621570399,0.17142,31827.0,31794.0,0.01]
[1609621570598,1.0,31815.0,31797.0,1.0]
[1609621570800,0.0946,31805.0,31797.0,1.0]
[1609621570998,0.0946,31805.0,31797.0,1.03958181]
[1609621571399,0.0946,31805.0,31797.0,1.22001339]
[1609621571600,0.18043158,31807.0,31797.0,1.25001339]
[1609621572301,0.18043158,31807.0,31797.0,1.06958181]
[1609621572501,0.18043158,31807.0,31797.0,0.06958181]
[1609621573103,0.18043158,31807.0,31766.0,0.19559567]
[1609621573404,0.18043158,31779.0,31776.0,0.18043158]
[1609621573603,0.29462158,31779.0,31766.0,0.07823827]
[1609621573804,0.29462158,31779.0,31766.0,0.07870899]
[1609621574003,0.28462158,31779.0,31766.0,0.07870899]
[1609621574205,0.28462158,31779.0,31749.0,0.03959968]
[1609621574504,0.28462158,31779.0,31767.0,0.0396097]
[1609621574704,0.28462158,31779.0,31750.0,0.03960452]
[1609621575103,0.28462158,31779.0,31746.0,0.03958202]
[1609621575304,0.28462158,31779.0,31751.0,0.03958379]
[1609621575506,0.11419,31779.0,31758.0,0.18043158]
[1609621576506,0.11419,31779.0,31758.0,0.37597256]
[1609621576707,1.0,31814.0,31778.0,6.0]
[1609621577105,1.0,31814.0,31778.0,6.12742]
[1609621577308,1.0,31814.0,31779.0,0.11775255]
[1609621577506,0.18043158,31780.0,31779.0,0.11775255]
[1609621577706,0.18043158,31780.0,31779.0,0.07865819]
[1609621578507,0.14761,31784.0,31779.0,0.07865819]
[1609621579106,0.14761,31784.0,31765.0,3.63543426]
[1609621579308,0.14761,31784.0,31780.0,0.03953216]
[1609621579507,0.14761,31784.0,31783.0,0.18043158]
[1609621579908,0.14761,31784.0,31783.0,0.21996155]
[1609621580308,0.67176333,31827.0,31783.0,0.21996155]
[1609621580709,0.67176333,31827.0,31784.0,0.03951743]
[1609621581208,0.0943,31797.0,31784.0,0.03951743]
[1609621581409,0.18043158,31793.0,31792.0,0.18043158]
[1609621581609,0.18043158,31793.0,31784.0,0.03951743]
[1609621581810,0.18043158,31793.0,31792.0,0.03953513]
[1609621582010,0.18043158,31793.0,31791.0,0.14488]
[1609621582209,0.67214334,31828.0,31791.0,0.14488]
[1609621582410,0.0946,31805.0,31792.0,0.03952158]
[1609621582610,0.0955,31820.0,31792.0,0.03952158]
[1609621583112,0.0955,31820.0,31784.0,0.03952382]
[1609621583310,0.22158299,31798.0,31793.0,0.03952461]
[1609621583511,0.18043158,31794.0,31793.0,0.03952461]
[1609621583711,0.27413158,31794.0,31784.0,0.03952387]
[1609621583910,0.18043158,31794.0,31793.0,0.0395213]
[1609621584113,0.18043158,31794.0,31785.0,0.03952438]
[1609621584313,0.18043158,31794.0,31767.0,0.14557]
[1609621584712,0.18043158,31794.0,31768.0,0.0395201]
[1609621584713,0.27483158,31794.0,31768.0,0.0395201]
[1609621585213,0.27483158,31794.0,31754.0,0.03952415]
[1609621585413,0.18043158,31755.0,31754.0,0.03952415]
[1609621585813,0.34601158,31755.0,31754.0,0.03952415]
[1609621586014,0.34601158,31755.0,31721.0,6.352947]
[1609621586015,0.34601158,31755.0,31726.0,0.11774414]
[1609621586413,0.34601158,31755.0,31754.0,0.0395429]
[1609621586613,0.34601158,31755.0,31727.0,0.03954495]
[1609621586814,0.34601158,31755.0,31754.0,0.03910853]
[1609621587013,0.34601158,31755.0,31754.0,0.03954534]
[1609621587212,0.34601158,31755.0,31722.0,0.07821629]
[1609621587413,0.34601158,31755.0,31754.0,0.03954147]
[1609621587613,0.16558,31755.0,31732.0,0.18043158]
[1609621587814,0.16558,31755.0,31726.0,0.10525]
[1609621588014,0.16558,31755.0,31733.0,0.03954206]
[1609621588213,0.16558,31755.0,31727.0,0.03954012]
[1609621588414,0.25998,31755.0,31734.0,0.03954247]
[1609621588714,0.25998,31755.0,31715.0,0.15981]
[1609621588715,0.25998,31755.0,31716.0,0.03954163]
[1609621589115,0.25998,31755.0,31735.0,0.0395483]
[1609621589317,0.25998,31755.0,31709.0,0.07821335]
[1609621589518,0.18043158,31710.0,31709.0,0.07821335]
[1609621589916,0.18043158,31710.0,31709.0,0.11775607]
[1609621590317,0.33273158,31710.0,31709.0,0.11775607]
[1609621591820,0.33273158,31710.0,31708.0,1.73066884]
[1609621592018,0.1523,31710.0,31708.0,1.73066884]
[1609621592818,0.1423,31710.0,31708.0,1.54066884]
[1609621593018,0.1423,31710.0,31708.0,0.76196884]
[1609621593519,0.18043158,31709.0,31708.0,0.76196884]
[1609621593820,0.18043158,31709.0,31708.0,0.80151388]
[1609621594522,0.1423,31710.0,31708.0,0.80151388]
[1609621594523,0.16236,31717.0,31708.0,0.80151388]
[1609621594721,0.16252,31709.0,31708.0,1.80151388]
[1609621594922,0.16252,31709.0,31708.0,1.76196884]
[1609621595130,0.25832,31709.0,31708.0,1.03954573]
[1609621595522,0.34295158,31709.0,31708.0,1.03954573]
[1609621596724,0.34295158,31709.0,31708.0,0.03954573]
[1609621597129,0.34295158,31709.0,31707.0,0.03954998]
[1609621597330,0.34295158,31709.0,31708.0,0.00043144]
[1609621597929,0.34295158,31709.0,31689.0,0.16727]
[1609621598332,0.34295158,31709.0,31690.0,0.03913524]
[1609621599131,0.34295158,31709.0,31691.0,0.00043149]
[1609621599533,0.18043158,31692.0,31691.0,0.00043149]
[1609621599734,0.27453158,31692.0,31691.0,0.00043149]
[1609621599933,0.18043158,31692.0,31690.0,0.03913524]
[1609621600735,0.0947,31691.0,31690.0,0.03913524]
[1609621601135,0.0947,31691.0,31690.0,0.03956675]
[1609621601536,0.18043158,31692.0,31690.0,0.03956675]
[1609621601736,0.18043158,31692.0,31690.0,0.13366675]
[1609621602139,0.18043158,31692.0,31682.0,0.10934]
[1609621602338,0.18043158,31692.0,31682.0,0.00184]
[1609621602537,0.0941,31691.0,31682.0,0.00184]
[1609621602736,0.0941,31691.0,31683.0,0.00043188]
[1609621602936,0.0941,31691.0,31682.0,4e-05]
[1609621603537,0.18043158,31683.0,31682.0,4e-05]
[1609621603937,0.18043158,31683.0,31679.0,0.07824158]
[1609621604137,0.18043158,31683.0,31682.0,0.07823712]
[1609621604537,0.31072158,31683.0,31668.0,0.07826466]
[1609621604738,0.40552158,31683.0,31668.0,0.07826466]
[1609621605139,0.40552158,31683.0,31622.0,0.12003]
[1609621605539,0.18043158,31656.0,31629.0,0.18043158]
[1609621605740,0.35122158,31656.0,31629.0,0.18043158]
[1609621605939,0.35122158,31656.0,31655.0,0.07865963]
[1609621607443,0.35122158,31656.0,31655.0,0.17255963]
[1609621607842,0.44562158,31656.0,31572.0,2.05053248]
[1609621608041,0.44562158,31656.0,31583.0,4.5822]
[1609621608242,0.44562158,31656.0,31600.0,0.03962949]
[1609621608543,0.44562158,31656.0,31600.0,0.22413977]
[1609621608744,0.17079,31656.0,31600.0,1.00743977]
[1609621609045,0.17079,31656.0,31601.0,0.03962692]
[1609621609647,0.17079,31656.0,31627.0,0.18043158]
[1609621610048,0.17079,31656.0,31609.0,0.10955]
[1609621610248,0.17079,31656.0,31628.0,0.00043127]
[1609621610448,0.17079,31656.0,31610.0,0.03963154]
[1609621610647,0.17079,31656.0,31611.0,0.0396247]
[1609621610848,0.0947,31661.0,31611.0,0.0396247]
[1609621611047,0.0947,31661.0,31610.0,0.03963501]
[1609621611248,0.5826,31660.0,31612.0,0.03963262]
[1609621611449,0.5826,31660.0,31612.0,0.03920138]
[1609621611649,0.18043158,31613.0,31611.0,0.039634]
[1609621611851,0.31610158,31613.0,31610.0,0.18043158]
[1609621612050,0.31610158,31613.0,31612.0,0.03961756]
[1609621612450,0.31610158,31613.0,31611.0,0.03961858]
[1609621612651,0.31610158,31613.0,31612.0,0.03961807]
[1609621612850,0.31610158,31613.0,31612.0,0.0004311]
[1609621613251,0.31610158,31613.0,31612.0,0.03962061]
[1609621613450,0.31610158,31613.0,31590.0,0.03962185]
[1609621613652,0.13567,31613.0,31612.0,0.00043116]
[1609621614051,0.13567,31613.0,31605.0,0.18043158]
[1609621614252,0.13567,31613.0,31606.0,0.03962469]
[1609621614853,0.13567,31613.0,31612.0,1.0]
[1609621615052,0.23167,31613.0,31612.0,1.0]
[1609621615258,0.23167,31613.0,31612.0,1.03961804]
[1609621615655,0.41210158,31613.0,31612.0,1.03961804]
[1609621615857,0.0947,31624.0,31612.0,1.03961804]
[1609621616056,1.0,31639.0,31612.0,1.03961804]
[1609621616456,1.0,31639.0,31613.0,0.03962309]
[1609621616857,0.11455,31661.0,31614.0,0.03963314]
[1609621617058,0.0941,31677.0,31614.0,0.03963314]
[1609621617258,0.0941,31677.0,31615.0,0.0947]
[1609621617668,0.0941,31677.0,31640.0,0.18043158]
[1609621618076,4.7163,31696.0,31640.0,0.18043158]
[1609621618262,4.7163,31696.0,31641.0,0.03961928]
[1609621618867,4.7163,31696.0,31641.0,0.00043111]
[1609621619067,0.0938,31695.0,31642.0,0.00043117]
[1609621619273,0.0938,31695.0,31612.0,0.03961695]
[1609621619470,0.20785,31695.0,31612.0,0.03961695]
[1609621619666,0.18043158,31637.0,31635.0,0.18043158]
[1609621619869,0.30569158,31637.0,31635.0,0.18043158]
[1609621620064,0.30569158,31637.0,31636.0,0.03966778]
[1609621620274,0.12526,31637.0,31636.0,0.03966778]
[1609621620470,0.11405,31695.0,31636.0,0.03966778]
[1609621620866,1.10512,31678.0,31636.0,6.03966778]
[1609621621464,1.10512,31678.0,31637.0,0.03966161]
[1609621621665,0.18043158,31645.0,31637.0,0.03966161]
[1609621621964,0.30429158,31645.0,31637.0,0.03966161]
[1609621622765,0.12386,31645.0,31644.0,6.0]
[1609621623265,0.12386,31645.0,31644.0,6.03965799]
[1609621623465,0.10512,31678.0,31644.0,6.03965799]
[1609621623664,0.10512,31678.0,31663.0,0.18043158]
[1609621624065,0.10512,31678.0,31664.0,0.03964813]
[1609621625567,0.18043158,31677.0,31674.0,0.18043158]
[1609621625967,0.18043158,31677.0,31675.0,0.03964175]
[1609621626567,0.18043158,31677.0,31657.0,0.12455]
[1609621626766,0.18043158,31677.0,31676.0,0.00047732]
[1609621627166,0.18043158,31677.0,31658.0,0.03965279]
[1609621627367,0.18043158,31677.0,31676.0,0.00047737]
[1609621627568,0.18043158,31677.0,31659.0,0.03917659]
[1609621627967,0.18043158,31677.0,31676.0,0.00047741]
[1609621628369,0.18043158,31677.0,31676.0,0.00095485]
[1609621628768,0.18043158,31677.0,31661.0,0.00047746]
[1609621628967,0.0937,31676.0,31651.0,0.18043158]
[1609621629169,0.0937,31676.0,31662.0,0.00047746]
[1609621629568,0.18043158,31663.0,31657.0,0.18043158]
[1609621629968,0.34281158,31663.0,31658.0,0.03966534]
[1609621630569,0.34281158,31663.0,31644.0,0.03965869]
[1609621630771,0.34281158,31663.0,31659.0,0.03965813]
[1609621631168,0.34281158,31663.0,31645.0,0.0396587]
[1609621631368,0.34281158,31663.0,31660.0,0.03965793]
[1609621631568,0.34281158,31663.0,31646.0,0.03965848]
[1609621631771,0.34281158,31663.0,31657.0,0.18043158]
[1609621631970,0.34281158,31663.0,31662.0,1.0]
[1609621632371,0.34281158,31663.0,31662.0,1.03965804]
[1609621632571,0.34281158,31663.0,31662.0,1.0]
[1609621632771,0.34281158,31663.0,31662.0,0.8169]
[1609621632970,0.34281158,31663.0,31660.0,0.07836118]
[1609621633172,0.0944,31662.0,31660.0,0.07836118]
[1609621633570,0.0944,31662.0,31635.0,0.03966324]
[1609621633771,0.0944,31662.0,31661.0,0.0396768]
[1609621633971,0.0944,31662.0,31624.0,0.14338]
[1609621634170,0.0944,31662.0,31620.0,0.07837355]
[1609621634372,0.0944,31662.0,31625.0,0.03967509]
[1609621634572,0.0944,31662.0,31620.0,0.25494914]
[1609621634773,0.0944,31662.0,31626.0,0.03967718]
[1609621635174,0.0944,31662.0,31621.0,0.03967779]
[1609621635373,0.0944,31662.0,31627.0,1.03967737]
[1609621635374,1.0,31643.0,31627.0,1.03967737]
[1609621635574,0.26701,31642.0,31627.0,1.0]
[1609621635773,0.18043158,31628.0,31627.0,1.0]
[1609621635975,0.31022158,31628.0,31627.0,1.0]
[1609621636674,0.31022158,31628.0,31627.0,1.00047442]
[1609621637274,0.31022158,31628.0,31627.0,0.00047442]
[1609621637473,0.31022158,31628.0,31612.0,0.07841568]
[1609621637673,0.18043158,31613.0,31612.0,0.07841568]
[1609621637873,0.35111158,31613.0,31593.0,0.18043158]
[1609621638074,0.35111158,31613.0,31612.0,0.03966748]
[1609621638274,0.35111158,31613.0,31594.0,0.03966844]
[1609621638675,0.35111158,31613.0,31612.0,0.00047425]
[1609621638874,0.44561158,31613.0,31578.0,0.07838605]
[1609621639076,0.44561158,31613.0,31581.0,0.03968973]
[1609621639274,0.02,31612.0,31581.0,0.03968973]
[1609621639476,0.02,31612.0,31579.0,0.03969856]
[1609621639678,0.18043158,31584.0,31582.0,0.03969352]
[1609621639877,0.32474158,31584.0,31571.0,0.18043158]
[1609621640278,0.32474158,31584.0,31583.0,0.03969494]
[1609621640477,0.32474158,31584.0,31572.0,0.03969762]
[1609621640678,0.32474158,31584.0,31583.0,0.03969698]
[1609621640877,0.32474158,31584.0,31571.0,0.18043158]
[1609621641079,0.32474158,31584.0,31573.0,0.03969901]
[1609621641279,0.32474158,31584.0,31573.0,0.03922455]
[1609621641280,0.0106,31581.0,31573.0,0.03922455]
[1609621641478,0.0106,31581.0,31574.0,0.03969983]
[1609621641677,0.18043158,31575.0,31574.0,0.03969983]
[1609621641877,0.31374158,31575.0,31573.0,0.03922455]
[1609621642077,0.31374158,31575.0,31541.0,0.07845162]
[1609621642278,1.31374158,31575.0,31541.0,0.07845162]
[1609621642479,0.31374158,31575.0,31541.0,0.07845162]
[1609621642679,0.31374158,31575.0,31525.0,0.03972529]
[1609621642879,0.40994158,31575.0,31542.0,0.0397255]
[1609621643078,0.40994158,31575.0,31526.0,0.03973757]
[1609621643279,4.3681,31563.0,31526.0,0.03973757]
[1609621643479,4.3681,31563.0,31525.0,0.03976189]
[1609621643681,4.3681,31563.0,31486.0,7.97092478]
[1609621643682,1.0,31562.0,31527.0,0.03977345]
[1609621643880,1.0,31562.0,31526.0,0.00047296]
[1609621644081,1.0,31562.0,31495.0,2.05413533]
[1609621644280,1.0,31562.0,31496.0,0.0393037]
[1609621644480,1.0943,31562.0,31496.0,0.03977561]
[1609621644682,1.0,31539.0,31496.0,0.03977561]
[1609621644881,5.42077,31540.0,31496.0,0.03977561]
[1609621645682,0.18043158,31497.0,31496.0,0.03977561]
[1609621645883,0.33712158,31497.0,31496.0,0.03977561]
[1609621646681,0.15669,31497.0,31496.0,0.03977561]
[1609621646882,0.15669,31497.0,31474.0,2.05916432]
[1609621647482,0.15669,31497.0,31475.0,0.03980611]
[1609621647683,4.8297,31553.0,31496.0,0.18043158]
[1609621647883,0.0963,31573.0,31496.0,1.18043158]
[1609621648083,0.0942,31539.0,31496.0,1.18043158]
[1609621648283,0.0942,31539.0,31497.0,0.03978257]
[1609621649084,0.095,31545.0,31497.0,0.03978257]
[1609621649384,0.095,31545.0,31536.0,1.0]
[1609621649789,0.095,31545.0,31539.0,0.18043158]
[1609621649986,0.52409985,31555.0,31539.0,0.18043158]
[1609621650185,0.52409985,31555.0,31540.0,0.00047177]
[1609621650386,0.0937,31560.0,31540.0,0.00047177]
[1609621650986,0.0937,31560.0,31540.0,0.03972944]
[1609621651188,0.13331,31575.0,31540.0,0.03972944]
[1609621651387,0.52411127,31599.0,31540.0,0.03972944]
[1609621651585,0.52411127,31599.0,31562.0,6.0]
[1609621651987,0.52411127,31599.0,31563.0,0.00047188]
[1609621652186,0.14479,31581.0,31563.0,0.00047188]
[1609621653791,0.18043158,31572.0,31571.0,0.18043158]
[1609621653992,0.30031158,31572.0,31571.0,0.18043158]
[1609621654191,0.0957,31579.0,31571.0,0.18090305]
[1609621654391,0.11071,31572.0,31571.0,0.18090305]
[1609621654592,0.11071,31572.0,31571.0,0.18043158]
[1609621654992,0.13533,31572.0,31571.0,0.18090321]
[1609621655692,0.13028,31572.0,31571.0,0.18090321]
[1609621655893,0.13028,31572.0,31571.0,0.00047163]
[1609621656294,1.13028,31572.0,31537.0,4.2162]
[1609621656499,1.13028,31572.0,31568.0,0.00047169]
[1609621656696,1.13028,31572.0,31537.0,4.2162]
[1609621656897,0.13028,31572.0,31537.0,4.2162]
[1609621657095,0.13028,31572.0,31540.0,0.00047184]
[1609621657298,0.13028,31572.0,31541.0,0.0957]
[1609621657796,0.094,31579.0,31571.0,0.18043158]
[1609621658198,0.14479,31581.0,31572.0,0.00047189]
[1609621658908,0.14479,31581.0,31562.0,0.00047162]
[1609621659110,1.0,31580.0,31562.0,0.00047162]
[1609621659305,1.0,31580.0,31573.0,0.00047176]
[1609621659509,1.0,31580.0,31563.0,0.00047171]
[1609621659714,0.18043158,31564.0,31549.0,0.00047198]
[1609621659905,1.0,31563.0,31549.0,0.00047198]
[1609621660308,0.15016,31564.0,31549.0,0.00047198]
[1609621660507,0.15016,31564.0,31536.0,0.00047107]
[1609621660801,0.15016,31564.0,31536.0,0.03978655]
[1609621661201,0.0956,31563.0,31536.0,0.03978655]
[1609621661603,0.0956,31563.0,31537.0,0.5852]
[1609621661805,0.15016,31564.0,31544.0,0.18043158]
[1609621662202,0.15016,31564.0,31545.0,0.00047113]
[1609621663004,0.15016,31564.0,31545.0,0.03978862]
[1609621663202,0.00856,31564.0,31545.0,0.03978862]
[1609621663604,0.00856,31564.0,31549.0,3.7336]
[1609621663804,0.00856,31564.0,31563.0,0.18043158]
[1609621664003,0.00856,31564.0,31550.0,0.03976099]
[1609621664212,0.00856,31564.0,31563.0,6.0]
[1609621664403,0.00856,31564.0,31563.0,6.03976308]
[1609621664805,0.14479,31581.0,31563.0,11.35716308]
[1609621665205,0.14479,31581.0,31563.0,5.35716308]
[1609621665405,0.14479,31581.0,31564.0,0.0397702]
[1609621665807,0.14479,31581.0,31580.0,0.18043158]
[1609621666007,0.53281585,31591.0,31580.0,0.18043158]
[1609621666206,0.53281585,31591.0,31580.0,0.22019449]
[1609621666407,0.53281585,31591.0,31585.0,3.9536]
[1609621667008,0.64082323,31593.0,31586.0,0.03975323]
[1609621667808,0.18043158,31606.0,31592.0,0.18043158]
[1609621668008,0.63971219,31614.0,31592.0,0.78163158]
[1609621668209,0.63971219,31614.0,31593.0,0.00047065]
[1609621668410,0.63971219,31614.0,31593.0,0.03975248]
[1609621668809,0.63971219,31614.0,31592.0,0.78163158]
[1609621668810,0.64433856,31596.0,31592.0,0.6012]
[1609621669010,0.75326856,31596.0,31592.0,0.6012]
[1609621669412,0.10893,31596.0,31592.0,0.30876025]
[1609621669811,0.14452,31596.0,31592.0,0.30876025]
[1609621670012,0.14452,31596.0,31592.0,0.11385549]
[1609621670412,0.14452,31596.0,31592.0,0.01639822]
[1609621671012,0.6441961,31599.0,31592.0,0.01639822]
[1609621671213,0.12152,31596.0,31592.0,0.01639822]
[1609621671813,0.12152,31596.0,31595.0,0.18043158]
[1609621672416,0.64533162,31606.0,31595.0,0.22015099]
[1609621672815,0.64533162,31606.0,31596.0,0.03971862]
[1609621673415,0.64637038,31609.0,31595.0,0.17848321]
[1609621673815,0.18043158,31608.0,31606.0,0.18043158]
[1609621674117,0.18043158,31608.0,31607.0,0.03972638]
[1609621674316,0.35224158,31608.0,31607.0,0.03972638]
[1609621674818,0.35224158,31608.0,31607.0,6.03972638]
[1609621676321,0.17181,31608.0,31607.0,6.03972638]
[1609621676521,0.17181,31608.0,31607.0,5.85837354]
[1609621676522,1.289096,31608.0,31607.0,5.85837354]
[1609621676721,1.289096,31608.0,31607.0,0.0785315]
[1609621677620,1.289096,31608.0,31607.0,4.6148315]
[1609621677821,1.289096,31608.0,31607.0,4.71673158]
[1609621678223,1.289096,31608.0,31607.0,4.83503088]
[1609621680524,0.17181,31608.0,31607.0,4.54257068]
[1609621680824,0.13382,31608.0,31607.0,4.54257068]
[1609621681024,0.65069744,31610.0,31607.0,4.54257068]
[1609621681424,0.65069744,31610.0,31608.0,0.11828237]
[1609621681824,0.65069744,31610.0,31608.0,0.03970806]
[1609621682425,0.63819744,31610.0,31608.0,0.03970806]
[1609621682625,0.81525672,31612.0,31608.0,0.11829419]
[1609621683026,0.81525672,31612.0,31609.0,6.0]
[1609621683226,0.81525672,31612.0,31609.0,6.03971762]
[1609621683427,0.81525672,31612.0,31610.0,0.03971233]
[1609621683627,0.81525672,31612.0,31609.0,5.8050672]
[1609621683628,0.02,31612.0,31609.0,5.8050672]
[1609621683827,0.02,31612.0,31611.0,0.18043158]
[1609621684026,0.16423,31612.0,31611.0,0.18043158]
[1609621684228,0.16423,31612.0,31611.0,0.22015844]
[1609621684730,0.16423,31612.0,31611.0,0.03972686]
[1609621685130,0.16423,31612.0,31605.0,0.03972582]
[1609621685331,1.16423,31612.0,31611.0,0.03972893]
[1609621685730,1.16423,31612.0,31606.0,0.03972864]
[1609621685930,0.18043158,31607.0,31600.0,0.18043158]
[1609621686532,0.18043158,31607.0,31601.0,0.03973332]
[1609621687132,0.46817054,31606.0,31600.0,0.17848087]
[1609621687834,0.18043158,31601.0,31600.0,0.17848087]
[1609621688233,0.29052158,31601.0,31600.0,0.21821232]
[1609621688434,0.29052158,31601.0,31600.0,0.20821232]
[1609621688633,0.29052158,31601.0,31600.0,0.19821232]
[1609621690934,0.29052158,31601.0,31600.0,0.19824281]
[1609621691135,1.3853791,31601.0,31600.0,0.03976194]
[1609621691336,1.3853791,31601.0,31600.0,0.0795019]
[1609621691536,1.3853791,31601.0,31600.0,0.03976194]
[1609621691737,1.3853791,31601.0,31600.0,0.07950747]